Cogmind - Beta 14 *** ADVENTURER MODE // 2024.09.06 @ 19:46:52 Player: DeepestRoots Result: Destroyed by Enhanced Grunt with Neutron Cannon Performance ------------- Evolutions (4) 2000 Regions Visited (9) 1800 Robots Destroyed (2) 10 Value Destroyed (7) 7 Prototype IDs (214) 4280 Alien Tech Used (0) 0 Bonus (3300) 3300 TOTAL SCORE: 11397 Bonus ------- Met Data Miner 300 Used Data Conduit 3000 Cogmind --------- Core Integrity 0/850 Matter 300/300 Energy 98/100 System Corruption 2% Temperature Cool (0) Movement Core (50) Location -6/Data Miner Parts ------- > --- POWER (1) -------- (None) > --- PROPULSION (2) --- (None) > --- UTILITY (10) ----- (None) > --- WEAPON (2) ------- (None) > --- INVENTORY (5) ---- (None) Peak State ------------ None Favorites ----------- Power None Propulsion None Utility None Weapon None Build | -11 -10 -10 -9 -8 -7 -6 -6 -6 -6 ------- Run | Yrd Mat Min Mat Mat Fac Fac Low Low Dat Slots Evolved 8 | . . . 2 2 2 2 . . . Power . | . . . . . . . . . . Propulsion . | . . . . . . . . . . Utility 8 | . . . 2 2 2 2 . . . Weapon . | . . . . . . . . . . Parts Attached . | . . . . . . . . . . Power . | . . . . . . . . . . Engine . | . . . . . . . . . . Core . | . . . . . . . . . . Reactor . | . . . . . . . . . . Propulsion . | . . . . . . . . . . Treads . | . . . . . . . . . . Leg . | . . . . . . . . . . Wheel . | . . . . . . . . . . Hover . | . . . . . . . . . . Flight . | . . . . . . . . . . Utility . | . . . . . . . . . . Device . | . . . . . . . . . . Storage . | . . . . . . . . . . Processor . | . . . . . . . . . . Hackware . | . . . . . . . . . . Protection . | . . . . . . . . . . Artifact . | . . . . . . . . . . Weapon . | . . . . . . . . . . Energy Gun . | . . . . . . . . . . Energy Cannon . | . . . . . . . . . . Ballistic Gun . | . . . . . . . . . . Ballistic Cannon . | . . . . . . . . . . Launcher . | . . . . . . . . . . Special Weapon . | . . . . . . . . . . Impact Weapon . | . . . . . . . . . . Slashing Weapon . | . . . . . . . . . . Piercing Weapon . | . . . . . . . . . . Special Melee Weapon . | . . . . . . . . . . Unidentified Prototypes . | . . . . . . . . . . Parts Lost . | . . . . . . . . . . Power . | . . . . . . . . . . Propulsion . | . . . . . . . . . . Utility . | . . . . . . . . . . Weapon . | . . . . . . . . . . Highest Loss Streak . | . . . . . . . . . . To Critical Strikes . | . . . . . . . . . . Average Slot Usage (%) . | . . . . . . . . . . Peak Build Rating . | . . . . . . . . . . Average Rating . | . . . . . . . . . . On Entrance . | . . . . . . . . . . Naked Turns 883 | . 29 28 126 103 163 173 108 128 25 Heaviest Build . | . . . . . . . . . . Greatest Support 3 | 3 3 3 3 3 3 3 3 3 3 Greatest Overweight (x) . | . . . . . . . . . . Average Overweight (x) . | . . . . . . . . . . Largest Inventory Capacity 5 | 5 5 5 5 5 5 5 5 5 5 Average Capacity 5 | 5 5 5 5 5 5 5 5 5 5 Most Carried . | . . . . . . . . . . Average Carried . | . . . . . . . . . . Final Capacity 5 | 5 5 5 5 5 5 5 5 5 5 Final Carried . | . . . . . . . . . . Class Distribution -------------------- 100% | Mutant Dominant Class ---------------- Mutant | -10/Materials Mutant | -10/Mines Mutant | -9/Materials Mutant | -8/Materials Mutant | -7/Factory Mutant | -6/Factory Mutant | -6/Lower Caves Mutant | -6/Lower Caves Mutant | -6/Data Miner Resources | -11 -10 -10 -9 -8 -7 -6 -6 -6 -6 ----------- Run | Yrd Mat Min Mat Mat Fac Fac Low Low Dat Matter Collected 204 | 204 . . . . . . . . . Remotely . | . . . . . . . . . . Salvage Created 173 | 114 . . . . . . 59 . . Parts 2 | 2 . . . . . . . . . Haulers Intercepted . | . . . . . . . . . . Recyclers Shooed . | . . . . . . . . . . Parts Field Recycled . | . . . . . . . . . . Retrieved Matter . | . . . . . . . . . . Parts Self-Destructed . | . . . . . . . . . . Prevented . | . . . . . . . . . . Kills | -11 -10 -10 -9 -8 -7 -6 -6 -6 -6 ------- Run | Yrd Mat Min Mat Mat Fac Fac Low Low Dat Combat Hostiles Destroyed . | . . . . . . . . . . Classes Destroyed 3 | 2 . . . . . . 1 . . Worker 1 | 1 . . . . . . . . . Recycler 1 | 1 . . . . . . . . . Samaritan 1 | . . . . . . . 1 . . Best Kill Streak 1 | 1 . . . . . . . . . Combat Bots Only . | . . . . . . . . . . Max Kills in Single Turn 1 | 1 . . . . . . 1 . . Gunslinging . | . . . . . . . . . . Exploded . | . . . . . . . . . . Melee . | . . . . . . . . . . Uniques/NPCs Destroyed . | . . . . . . . . . . Combat | -11 -10 -10 -9 -8 -7 -6 -6 -6 -6 -------- Run | Yrd Mat Min Mat Mat Fac Fac Low Low Dat Hostile Shots Fired 207 | . 1 . 12 32 49 87 . 21 5 Missed 91 | . 1 . 4 12 27 41 . 4 2 Damage Taken 1629 | 99 8 . 123 244 268 540 9 221 117 Core 1629 | 99 8 . 123 244 268 540 9 221 117 Absorbed by Shields . | . . . . . . . . . . Ignored by Resistances 418 | . . . 25 69 73 157 . 64 30 Core Remaining (%) 60 | 60 . 57 69 55 61 . . . . Volleys Fired . | . . . . . . . . . . Largest . | . . . . . . . . . . Hottest . | . . . . . . . . . . Shots Fired . | . . . . . . . . . . Gun . | . . . . . . . . . . Cannon . | . . . . . . . . . . Launcher . | . . . . . . . . . . Special . | . . . . . . . . . . Kinetic . | . . . . . . . . . . Thermal . | . . . . . . . . . . Explosive . | . . . . . . . . . . Electromagnetic . | . . . . . . . . . . Robot Hit Streak . | . . . . . . . . . . Robot Miss Streak . | . . . . . . . . . . Penetration Max . | . . . . . . . . . . Secondary Targets . | . . . . . . . . . . Shots Hit Robots . | . . . . . . . . . . Core Hits 10 | 6 . 1 2 . . 1 . . . Critical Kills . | . . . . . . . . . . Critical Parts Destroyed . | . . . . . . . . . . Critical Strikes . | . . . . . . . . . . Melee Attacks . | . . . . . . . . . . Impact . | . . . . . . . . . . Slashing . | . . . . . . . . . . Piercing . | . . . . . . . . . . Sneak Attacks . | . . . . . . . . . . Combat Hostiles . | . . . . . . . . . . Follow-up Attacks . | . . . . . . . . . . Damage Inflicted 324 | 157 17 2 49 6 24 45 18 . 6 Guns . | . . . . . . . . . . Cannons . | . . . . . . . . . . Explosions . | . . . . . . . . . . Melee . | . . . . . . . . . . Ramming 324 | 157 17 2 49 6 24 45 18 . 6 Kinetic . | . . . . . . . . . . Thermal . | . . . . . . . . . . Explosive . | . . . . . . . . . . Electromagnetic . | . . . . . . . . . . Impact . | . . . . . . . . . . Slashing . | . . . . . . . . . . Piercing . | . . . . . . . . . . Highest Corruption 10 | 10 10 10 . . . 1 2 2 2 Average Corruption 4 | 7 10 10 . . . 1 1 2 2 Corruption Purged . | . . . . . . . . . . Corruption Blocked . | . . . . . . . . . . Effects 4 | 2 1 . . . . . 1 . . Message Errors 1 | . . . . . . . 1 . . Matter Fused 1 | 1 . . . . . . . . . Energy Discharges 2 | 1 1 . . . . . . . . Overload Shots . | . . . . . . . . . . Overflow Damage 13 | . . . . . . . 13 . . Projectiles . | . . . . . . . . . . Explosions . | . . . . . . . . . . Melee 13 | . . . . . . . 13 . . Knockbacks 2 | 1 . . 1 . . . . . . Impact 2 | 1 . . 1 . . . . . . Kinetic . | . . . . . . . . . . Secondary . | . . . . . . . . . . Self-Inflicted Damage 147 | 70 8 . 23 2 11 21 9 . 3 Shots . | . . . . . . . . . . Rammed 69 | 35 2 3 11 3 6 7 1 . 1 Targets Rammed 69 | 35 2 3 11 3 6 7 1 . 1 Kicked . | . . . . . . . . . . Crushed . | . . . . . . . . . . Highest Temperature . | . . . . . . . . . . Average Temperature . | . . . . . . . . . . Received Heat Transfer 282 | . . . 45 126 . 93 . 18 . Siege Activations . | . . . . . . . . . . Robots Corrupted 1 | . . . . . . . 1 . . Combat Hostiles . | . . . . . . . . . . Parts Fried 2 | . . . . . . . 2 . . Impact Corruptions 3 | . . . . . . . 3 . . Robots Melted . | . . . . . . . . . . Combat Hostiles . | . . . . . . . . . . Parts Melted . | . . . . . . . . . . Heat Transferred . | . . . . . . . . . . Parts Sabotaged . | . . . . . . . . . . Parts Stolen . | . . . . . . . . . . Parts Stripped . | . . . . . . . . . . Power Chain Reactions . | . . . . . . . . . . Alert | -11 -10 -10 -9 -8 -7 -6 -6 -6 -6 ------- Run | Yrd Mat Min Mat Mat Fac Fac Low Low Dat Peak Influence 493 | 10 5 1 75 207 245 493 . . . Initial 103 | . 5 1 . 27 80 103 . . . Average 87 | 1 5 1 10 95 171 215 . . . Maximum Alert Level 2 | . . . . 1 1 2 . . . Low Security (%) 79 | 100 100 100 100 84 43 59 . . . Level 1 18 | . . . . 15 56 33 . . . Level 2 1 | . . . . . . 6 . . . Level 3 . | . . . . . . . . . . Level 4 . | . . . . . . . . . . Level 5 . | . . . . . . . . . . High Security . | . . . . . . . . . . Max Security . | . . . . . . . . . . Squads Dispatched 4 | . . . 1 1 . 2 . . . Investigation . | . . . . . . . . . . Extermination . | . . . . . . . . . . Reinforcement 4 | . . . 1 1 . 2 . . . Assault . | . . . . . . . . . . Garrison . | . . . . . . . . . . Intercept . | . . . . . . . . . . Searches Triggered . | . . . . . . . . . . Construction Impeded 1 | . . . . . . 1 . . . Haulers Reinforced . | . . . . . . . . . . Active Scanning Responses . | . . . . . . . . . . Cargo Convoy Interrupts . | . . . . . . . . . . Stealth | -11 -10 -10 -9 -8 -7 -6 -6 -6 -6 --------- Run | Yrd Mat Min Mat Mat Fac Fac Low Low Dat Distress Signals 2 | . . . . 1 . 1 . . . Communications Jammed . | . . . . . . . . . . Distress Signals . | . . . . . . . . . . Times Spotted 71 | . 2 . 6 14 8 29 . 8 4 Peak Tracking Total 12 | . 3 . 4 12 4 12 . 7 4 Tactical Retreats 12 | . . . . 2 2 4 . 4 . Traps | -11 -10 -10 -9 -8 -7 -6 -6 -6 -6 ------- Run | Yrd Mat Min Mat Mat Fac Fac Low Low Dat Traps Triggered . | . . . . . . . . . . Indirectly . | . . . . . . . . . . Trap Hack Attempts . | . . . . . . . . . . Triggered . | . . . . . . . . . . Disarmed . | . . . . . . . . . . Reprogrammed . | . . . . . . . . . . Reused . | . . . . . . . . . . Traps Extracted . | . . . . . . . . . . Installed . | . . . . . . . . . . Triggered . | . . . . . . . . . . Machines | -11 -10 -10 -9 -8 -7 -6 -6 -6 -6 ---------- Run | Yrd Mat Min Mat Mat Fac Fac Low Low Dat Machines Disabled . | . . . . . . . . . . Max in Single Turn . | . . . . . . . . . . Machines Repaired . | . . . . . . . . . . Machines Dismantled . | . . . . . . . . . . Machines Sabotaged . | . . . . . . . . . . Overloaded Fab Kills . | . . . . . . . . . . Hacking | -11 -10 -10 -9 -8 -7 -6 -6 -6 -6 --------- Run | Yrd Mat Min Mat Mat Fac Fac Low Low Dat Machines Accessed 1 | . . . . . 1 . . . . Terminals 1 | . . . . . 1 . . . . Fabricators . | . . . . . . . . . . Repair Stations . | . . . . . . . . . . Recycling Units . | . . . . . . . . . . Scanalyzers . | . . . . . . . . . . Garrison Access . | . . . . . . . . . . Total Hacks 1 | . . . . . 1 . . . . Successful 1 | . . . . . 1 . . . . Failed . | . . . . . . . . . . Catastrophic . | . . . . . . . . . . Database Lockouts . | . . . . . . . . . . Manual . | . . . . . . . . . . Terminals 1 | . . . . . 1 . . . . Fabricators . | . . . . . . . . . . Repair Stations . | . . . . . . . . . . Recycling Units . | . . . . . . . . . . Scanalyzers . | . . . . . . . . . . Garrison Access . | . . . . . . . . . . Terminal Hacks 1 | . . . . . 1 . . . . Open DSF 1 | . . . . . 1 . . . . Fabricator Hacks . | . . . . . . . . . . Repair Station Hacks . | . . . . . . . . . . Recycling Unit Hacks . | . . . . . . . . . . Scanalyzer . | . . . . . . . . . . Garrison Access Hacks . | . . . . . . . . . . Unauthorized Hacks . | . . . . . . . . . . Terminals . | . . . . . . . . . . Fabricators . | . . . . . . . . . . Repair Stations . | . . . . . . . . . . Recycling Units . | . . . . . . . . . . Scanalyzers . | . . . . . . . . . . Garrison Access . | . . . . . . . . . . Data Cores Recovered . | . . . . . . . . . . Used . | . . . . . . . . . . Hacking Detections . | . . . . . . . . . . Full Trace Events . | . . . . . . . . . . Feedback Events . | . . . . . . . . . . Feedback Blocked . | . . . . . . . . . . Robot Schematics Acquired . | . . . . . . . . . . Robots Built . | . . . . . . . . . . Authchips . | . . . . . . . . . . Time . | . . . . . . . . . . Total Robot Build Rating . | . . . . . . . . . . Part Schematics Acquired . | . . . . . . . . . . Parts Built . | . . . . . . . . . . Authchips . | . . . . . . . . . . Time . | . . . . . . . . . . Total Part Build Rating . | . . . . . . . . . . Parts Repaired . | . . . . . . . . . . Time . | . . . . . . . . . . Parts Recycled . | . . . . . . . . . . Recycled Matter . | . . . . . . . . . . Retrieved Matter . | . . . . . . . . . . Retrieved Components . | . . . . . . . . . . Parts Scanalyzed . | . . . . . . . . . . Part Schematics Acquired . | . . . . . . . . . . Parts Damaged . | . . . . . . . . . . Bothacking | -11 -10 -10 -9 -8 -7 -6 -6 -6 -6 ------------ Run | Yrd Mat Min Mat Mat Fac Fac Low Low Dat Used RIF Installer . | . . . . . . . . . . Robots Hacked . | . . . . . . . . . . Non-combat . | . . . . . . . . . . Combat . | . . . . . . . . . . Robot Hacks Applied . | . . . . . . . . . . Relay Couplers Released . | . . . . . . . . . . Fabnet Peak Effective % . | . . . . . . . . . . Robots Rewired . | . . . . . . . . . . Allies Hacked . | . . . . . . . . . . Hacks Repelled . | . . . . . . . . . . Allies | -11 -10 -10 -9 -8 -7 -6 -6 -6 -6 -------- Run | Yrd Mat Min Mat Mat Fac Fac Low Low Dat Total Allies . | . . . . . . . . . . Largest Group . | . . . . . . . . . . Highest-Rated Group . | . . . . . . . . . . Highest-Rated Ally . | . . . . . . . . . . Total Orders . | . . . . . . . . . . Ally Attacks . | . . . . . . . . . . Total Damage . | . . . . . . . . . . Kills . | . . . . . . . . . . Allies Corrupted . | . . . . . . . . . . Allies Melted . | . . . . . . . . . . Intel | -11 -10 -10 -9 -8 -7 -6 -6 -6 -6 ------- Run | Yrd Mat Min Mat Mat Fac Fac Low Low Dat Robot Analysis Total 145 | . . . . . . . . . 145 Derelict Logs Recovered 4 | . . 1 . . . . 1 2 . Drone Launches . | . . . . . . . . . . Drone Recoveries . | . . . . . . . . . . Exploration | -11 -10 -10 -9 -8 -7 -6 -6 -6 -6 ------------- Run | Yrd Mat Min Mat Mat Fac Fac Low Low Dat Turns Passed 1142 | 259 29 28 126 103 163 173 108 128 25 Spaces Moved 2134 | 439 54 48 229 200 314 332 214 256 48 Core 2134 | 439 54 48 229 200 314 332 214 256 48 Treads . | . . . . . . . . . . Legs . | . . . . . . . . . . Wheels . | . . . . . . . . . . Hover . | . . . . . . . . . . Flight . | . . . . . . . . . . Fastest Speed 50 | 50 50 50 50 50 50 50 50 50 50 Average Speed 50 | 50 50 50 50 50 50 50 50 50 50 Slowest Speed 50 | 50 50 50 50 50 50 50 50 50 50 Overloaded Moves . | . . . . . . . . . . Propulsion Burnouts . | . . . . . . . . . . Robots Hopped . | . . . . . . . . . . Cave-ins Triggered . | . . . . . . . . . . Exploration Rate (%) 27 | 7 16 16 21 36 11 17 40 43 63 Regions Visited 9 Branch Regions 4 Pre-discovered Areas 31 | . . 1 . . . . . . 30 Known Exits Taken . | . . . . . . . . . . Unknown Exits Taken 9 | 1 1 1 1 1 1 1 1 1 . Scrap Searched 4 | . . 1 . . . . . 3 . Spaces Dug . | . . . . . . . . . . Terrain Destroyed . | . . . . . . . . . . Melee . | . . . . . . . . . . Projectile . | . . . . . . . . . . AOE . | . . . . . . . . . . Terrain Rammed . | . . . . . . . . . . Walls Destroyed . | . . . . . . . . . . Machines Disabled . | . . . . . . . . . . Actions | -11 -10 -10 -9 -8 -7 -6 -6 -6 -6 --------- Run | Yrd Mat Min Mat Mat Fac Fac Low Low Dat Total 2199 | 477 55 51 239 202 319 338 214 255 49 Wait 5 | 4 . 1 . . . . . . . Move 2125 | 438 53 47 228 199 313 331 213 255 48 Hop . | . . . . . . . . . . Pick Up . | . . . . . . . . . . Fast Attach . | . . . . . . . . . . Attach . | . . . . . . . . . . Detach . | . . . . . . . . . . Swap . | . . . . . . . . . . Drop . | . . . . . . . . . . Fire . | . . . . . . . . . . Melee . | . . . . . . . . . . Ram 69 | 35 2 3 11 3 6 7 1 . 1 Kick . | . . . . . . . . . . Crush . | . . . . . . . . . . Escape Stasis . | . . . . . . . . . . Rewire . | . . . . . . . . . . Trap . | . . . . . . . . . . Miscellaneous . | . . . . . . . . . . Route ------- -11/Scrapyard -10/Materials -10/Mines -9/Materials -8/Materials (discovered 2 exits: *Fac / [*Sto]) -7/Factory -6/Factory -6/Lower Caves -6/Lower Caves -6/Data Miner (discovered 1 exit: [*Pro]) History --------- Turn | Location | Event 2 | -11/Scrapyard | Discovered new exit (range 16) 236 | -11/Scrapyard | System corruption reached 10% 260 | -11/Scrapyard | Entered Materials 284 | -10/Materials | Discovered new exit (range 5) 289 | -10/Materials | Entered Mines 306 | -10/Mines | Discovered new exit (range 9) 310 | -10/Mines | Learned location of Storage (-8) 315 | -10/Mines | Met a Derelict bent on vengeance 317 | -10/Mines | Entered Materials 317 | -9/Materials | Evolved 2 slots: Utility x2 318 | -9/Materials | Build established: Mutant 439 | -9/Materials | Discovered new exit (range 8) 443 | -9/Materials | Entered another Materials area 443 | -8/Materials | Evolved 2 slots: Utility x2 517 | -8/Materials | Discovered new exit (range 8) 543 | -8/Materials | Discovered new exit (range 5) 546 | -8/Materials | Entered Factory 546 | -7/Factory | Evolved 2 slots: Utility x2 703 | -7/Factory | Discovered new exit (range 15) 709 | -7/Factory | Entered another Factory area 709 | -6/Factory | Evolved 2 slots: Utility x2 859 | -6/Factory | Core integrity fell below 50% 874 | -6/Factory | Discovered new exit (range 15) 882 | -6/Factory | Entered Lower Caves 887 | -6/Lower Caves | Learned 4 Factory zone layouts 987 | -6/Lower Caves | Discovered new exit (range 8) 990 | -6/Lower Caves | Entered another Lower Caves area 1023 | -6/Lower Caves | Learned location of 1 exit from Factory 1025 | -6/Lower Caves | Attracted the attention of an 0b10 base 1032 | -6/Lower Caves | Core integrity fell below 20% 1097 | -6/Lower Caves | Encountered a Warlord checkpoint 1102 | -6/Lower Caves | Learned location of 1 exit from Proximity Caves 1111 | -6/Lower Caves | Discovered new exit (range 13) 1118 | -6/Lower Caves | Entered Data Miner 1118 | -6/Data Miner | Discovered new exit (range 6) 1128 | -6/Data Miner | Met Data Miner 1135 | -6/Data Miner | Interfaced with the Data Conduit 1143 | -6/Data Miner | Destroyed by Enhanced Grunt with Neutron Cannon Last Messages --------------- 01115_ Found Power Amplifier. 01115_ Found Remote Datajack. 01115_ Found Weapon Cycler. 01115_ Found 48 Matter. LOCATION=UNKNOWN GOAL=ESCAPE 01118_ EXIT=FOUND Data Miner: I'm the Data Miner, and I've been given permission to aid you with a little knowledge. Find what you need on the terminals, then be on your way because masking your presence is increasingly difficult. 01135_ Slammed into Data Miner. 01135_ Interfacing with system... 01135_ Data Miner disappears through a trap door. Downloaded 145 analysis records. Downloaded 756 prototype IDs. Downloaded central machine database. Downloaded 30 destinations. Downloaded encryption format records. Connection remotely terminated. Map ----- +----------------------------------------------------+ | | | | | | | | | | | | | | | | | | | | | | | | | | | | | ???????????????????????????????????????????????? | | ???????????????????????????????????????????????? | | ???????????????????????????????????????????????? | | ???????????????????????????????????????????????? | | ?????????????????????????????????????####??????? | | ??????###############??????#???????### #??????? | | ?????"""""""""""""""###### #?#?#??## #??????? | | ????""""""""" """"""""# # # # ## < ##??????? | | ????""""""""" g g gg ######?? | | ????"""""" #?? | | ???""""""" #?? | | ???""""""% @ #?? | | ???""""""" ##?? | | ????"""""" """"""""""""""""#####??? | | ????""""""" """"###############??????? | | ????""""""" """""###????????????????????? | | ?????"""""""" "#####??????????????????????? | | ??????######"## "#??????????????????????????? | | ???????????#"##; "#??????????????????????????? | | ???????????#"### "#??????????????????????????? | | ???????????#"?? "#??????????????????????????? | | ??????????????# "#??????????????????????????? | | ?????????????? "#??????????????????????????? | | ?????????????### "???????????????????????????? | | ???????????????# "???????????????????????????? | | ???????????????# "???????????????????????????? | | ???????????????? ????????????????????????????? | | ???????????????????????????????????????????????? | | ???????????????????????????????????????????????? | | ???????????????????????????????????????????????? | | ???????????????????????????????????????????????? | | ???????????????????????????????????????????????? | | ???????????????????????????????????????????????? | | ???????????????????????????????????????????????? | | ???????????????????????????????????????????????? | | ???????????????????????????????????????????????? | +----------------------------------------------------+ Best States ------------- Heat Dissipation 37 Energy Generation 5 Energy Capacity 100 Matter Stores 300 Matter Capacity 300 Sight Range 16 Terrain Scan Density 10 Resistance: KI 20 Resistance: TH 20 Resistance: EX 20 Resistance: EM 20 Resistance: I 20 Resistance: S 20 Resistance: P 20 Evasion (%) 50 Offensive Hacking 10 Item Schematics ----------------- None Robot Schematics ------------------ None Fabricated ------------ Nothing Alien Tech Used ----------------- None Achievements -------------- None Challenges ------------ None Game ------ Seed TachyonReinforcedGuard Manual? 0 Play Time 00:10:07 Cumulative 580.3 hours Start 2024.09.06 @ 19:36:57 End 2024.09.06 @ 19:46:52 Sessions 1 Manual Loads 0 Difficulty Adventurer Special Mode None Game No. 47 Rogue 9 Adventurer 24 Explorer 14 Win Type - Total 33 Types 19/2/8/1/1/2/0/0/0 Lore% 77 Gallery% 88 Achievement% 77 Wizard Run 0 Options --------- Layout 0 ASCII 0 Keyboard 0 Movement Numpad Keybinds 0 Fullscreen 2 Font 36/Terminus++ Map View 76x50 Zoom Use 0% Tactical HUD 1 Map Filters NONE Filters NONE Steam 0 RUN: 9a3e3b7c-5b00-4f71-bdd7-42a89e72641a